[Event "Titled Tuesday Blitz May 30 Early 2023"]
[White "Narayanan, Srinath"]
[Black "Papasimakopoulos, Alexandros"]
[WhiteFideId "5018420"]
[BlackFideId "4244125"]
[WhiteElo "2438"]
[BlackElo "2359"]
[Result "1-0"]
[Round "11"]
[TimeControl "180+2"]
[Date "2023.05.30"]
[WhiteClock "0:01:09"]
[BlackClock "0:01:11"]

1. Nf3 {[%clk 0:03:00]}  d5 {[%clk 0:02:57]} 2. e3 {[%clk 0:03:00]}  Nf6 {[%clk 0:02:57]} 3. c4 {[%clk 0:03:01]}  e6 {[%clk 0:02:54]} 4. b3 {[%clk 0:03:01]}  c5 {[%clk 0:02:53]} 5. Bb2 {[%clk 0:03:01]}  Be7 {[%clk 0:02:54]} 6. cxd5 {[%clk 0:02:58]}  exd5 {[%clk 0:02:55]} 7. d4 {[%clk 0:02:59]}  Nc6 {[%clk 0:02:54]} 8. dxc5 {[%clk 0:02:58]}  Bxc5 {[%clk 0:02:55]} 9. Be2 {[%clk 0:02:59]}  O-O {[%clk 0:02:55]} 10. O-O {[%clk 0:02:59]}  Bf5 {[%clk 0:02:54]} 11. Nc3 {[%clk 0:02:56]}  a6 {[%clk 0:02:46]} 12. Rc1 {[%clk 0:02:56]}  Ba7 {[%clk 0:02:41]} 13. Na4 {[%clk 0:02:56]}  Ne4 {[%clk 0:02:37]} 14. Bxa6 {[%clk 0:02:56]}  Nb4 {[%clk 0:02:01]} 15. Be2 {[%clk 0:02:26]}  Nxa2 {[%clk 0:02:01]} 16. Ra1 {[%clk 0:02:26]}  Nb4 {[%clk 0:02:01]} 17. Ba3 {[%clk 0:02:26]}  Qa5 {[%clk 0:01:29]} 18. Qe1 {[%clk 0:02:25]}  Nc6 {[%clk 0:01:30]} 19. Bxf8 {[%clk 0:02:22]}  Kxf8 {[%clk 0:01:31]} 20. Qxa5 {[%clk 0:01:56]}  Nxa5 {[%clk 0:01:30]} 21. Nb2 {[%clk 0:01:57]}  Nc6 {[%clk 0:01:29]} 22. Nd4 {[%clk 0:01:50]}  Bd7 {[%clk 0:01:21]} 23. Nxc6 {[%clk 0:01:38]}  bxc6 {[%clk 0:01:18]} 24. Ra3 {[%clk 0:01:35]}  Nd6 {[%clk 0:01:18]} 25. Rfa1 {[%clk 0:01:33]}  Nc8 {[%clk 0:01:19]} 26. Nd3 {[%clk 0:01:28]}  Ke7 {[%clk 0:01:18]} 27. Ne5 {[%clk 0:01:28]}  Be8 {[%clk 0:01:17]} 28. Bg4 {[%clk 0:01:27]}  Kd6 {[%clk 0:01:15]} 29. Nd3 {[%clk 0:01:22]}  Bd7 {[%clk 0:01:15]} 30. Bxd7 {[%clk 0:01:14]}  Kxd7 {[%clk 0:01:16]} 31. Ne5+ {[%clk 0:01:15]}  Kc7 {[%clk 0:01:16]} 32. Nxf7 {[%clk 0:01:14]}  Kb7 {[%clk 0:01:15]} 33. h4 {[%clk 0:01:14]}  Rb8 {[%clk 0:01:14]} 34. Nd8+ {[%clk 0:01:08]}  Kc7 {[%clk 0:01:13]} 35. Ne6+ {[%clk 0:01:08]}  Kd6 {[%clk 0:01:13]} 36. Nxg7 {[%clk 0:01:08]}  Bc5 {[%clk 0:01:13]} 37. Ra8 {[%clk 0:01:08]}  Rxa8 {[%clk 0:01:11]} 38. Rxa8 {[%clk 0:01:09]} 1-0


[Site "https://www.chess.com"]

[Event "Titled Tuesday Blitz May 30 Early 2023"]
[White "Makarian, Rudik"]
[Black "Mendonca, Leon Luke"]
[WhiteFideId "44105681"]
[BlackFideId "35028561"]
[WhiteElo "2461"]
[BlackElo "2464"]
[Result "1-0"]
[Round "11"]
[TimeControl "180+2"]
[Date "2023.05.30"]
[WhiteClock "0:00:02"]
[BlackClock "0:00:00"]

1. d4 {[%clk 0:03:00]}  e6 {[%clk 0:02:59]} 2. c4 {[%clk 0:03:01]}  Bb4+ {[%clk 0:02:59]} 3. Bd2 {[%clk 0:03:01]}  Bxd2+ {[%clk 0:02:59]} 4. Qxd2 {[%clk 0:03:02]}  Nf6 {[%clk 0:03:00]} 5. Nc3 {[%clk 0:03:01]}  d5 {[%clk 0:03:00]} 6. Nf3 {[%clk 0:03:01]}  O-O {[%clk 0:03:00]} 7. h4 {[%clk 0:03:02]}  b6 {[%clk 0:02:40]} 8. h5 {[%clk 0:03:02]}  h6 {[%clk 0:02:40]} 9. g4 {[%clk 0:03:02]}  Bb7 {[%clk 0:02:26]} 10. g5 {[%clk 0:02:49]}  Ne4 {[%clk 0:02:26]} 11. Qe3 {[%clk 0:01:31]}  Nxg5 {[%clk 0:02:21]} 12. Rg1 {[%clk 0:01:29]}  Nxf3+ {[%clk 0:02:19]} 13. Qxf3 {[%clk 0:01:15]}  Kh8 {[%clk 0:02:11]} 14. e3 {[%clk 0:01:14]}  Nd7 {[%clk 0:02:05]} 15. cxd5 {[%clk 0:01:09]}  exd5 {[%clk 0:01:40]} 16. Bd3 {[%clk 0:01:05]}  Qf6 {[%clk 0:01:35]} 17. Qg4 {[%clk 0:00:57]}  Rad8 {[%clk 0:01:31]} 18. O-O-O {[%clk 0:00:46]}  c5 {[%clk 0:01:29]} 19. Rg3 {[%clk 0:00:37]}  Rg8 {[%clk 0:01:21]} 20. Rdg1 {[%clk 0:00:34]}  cxd4 {[%clk 0:01:16]} 21. exd4 {[%clk 0:00:35]}  Nf8 {[%clk 0:01:10]} 22. Rf3 {[%clk 0:00:32]}  Qe7 {[%clk 0:01:04]} 23. Qf4 {[%clk 0:00:26]}  Rd7 {[%clk 0:00:55]} 24. Rfg3 {[%clk 0:00:23]}  Rd6 {[%clk 0:00:55]} 25. Re3 {[%clk 0:00:14]}  Re6 {[%clk 0:00:52]} 26. Reg3 {[%clk 0:00:09]}  Qf6 {[%clk 0:00:48]} 27. Qb8 {[%clk 0:00:04]}  Re7 {[%clk 0:00:42]} 28. R3g2 {[%clk 0:00:02]}  Ne6 {[%clk 0:00:37]} 29. Qg3 {[%clk 0:00:03]}  Qf4+ {[%clk 0:00:36]} 30. Qxf4 {[%clk 0:00:01]}  Nxf4 {[%clk 0:00:37]} 31. Rg3 {[%clk 0:00:02]}  Bc8 {[%clk 0:00:33]} 32. Kd2 {[%clk 0:00:02]}  Nxh5 {[%clk 0:00:22]} 33. Rf3 {[%clk 0:00:03]}  Be6 {[%clk 0:00:20]} 34. Rh1 {[%clk 0:00:02]}  g6 {[%clk 0:00:18]} 35. Re3 {[%clk 0:00:01]}  Rge8 {[%clk 0:00:14]} 36. Ne2 {[%clk 0:00:01]}  Kg7 {[%clk 0:00:14]} 37. Nc3 {[%clk 0:00:01]}  Nf6 {[%clk 0:00:13]} 38. Re5 {[%clk 0:00:01]}  Nd7 {[%clk 0:00:12]} 39. Re2 {[%clk 0:00:01]}  h5 {[%clk 0:00:13]} 40. Ree1 {[%clk 0:00:01]}  Nf6 {[%clk 0:00:13]} 41. Reg1 {[%clk 0:00:02]}  Bg4 {[%clk 0:00:11]} 42. Rg3 {[%clk 0:00:02]}  Kf8 {[%clk 0:00:07]} 43. f3 {[%clk 0:00:02]}  Be6 {[%clk 0:00:07]} 44. Ne2 {[%clk 0:00:02]}  Bd7 {[%clk 0:00:07]} 45. Nf4 {[%clk 0:00:03]}  Rc8 {[%clk 0:00:05]} 46. Rhg1 {[%clk 0:00:03]}  Be8 {[%clk 0:00:05]} 47. Rg5 {[%clk 0:00:03]}  Rd7 {[%clk 0:00:04]} 48. Re5 {[%clk 0:00:03]}  Rd6 {[%clk 0:00:04]} 49. Rge1 {[%clk 0:00:03]}  Bd7 {[%clk 0:00:05]} 50. Rg1 {[%clk 0:00:03]}  Re8 {[%clk 0:00:04]} 51. Reg5 {[%clk 0:00:04]}  Rd8 {[%clk 0:00:04]} 52. Re5 {[%clk 0:00:04]}  Be8 {[%clk 0:00:04]} 53. b4 {[%clk 0:00:03]}  R8d7 {[%clk 0:00:04]} 54. a3 {[%clk 0:00:03]}  Rc7 {[%clk 0:00:04]} 55. Reg5 {[%clk 0:00:04]}  Rd8 {[%clk 0:00:04]} 56. Ne2 {[%clk 0:00:04]}  Bd7 {[%clk 0:00:04]} 57. Nf4 {[%clk 0:00:04]}  Be8 {[%clk 0:00:04]} 58. Bxg6 {[%clk 0:00:04]}  fxg6 {[%clk 0:00:04]} 59. Ne6+ {[%clk 0:00:04]}  Kf7 {[%clk 0:00:02]} 60. Nxc7 {[%clk 0:00:03]}  Rc8 {[%clk 0:00:02]} 61. Nxe8 {[%clk 0:00:02]}  Rxe8 {[%clk 0:00:01]} 62. Rc1 {[%clk 0:00:03]}  Rd8 {[%clk 0:00:01]} 63. Rc7+ {[%clk 0:00:03]}  Rd7 {[%clk 0:00:01]} 64. Rxd7+ {[%clk 0:00:03]}  Nxd7 {[%clk 0:00:02]} 65. Rxd5 {[%clk 0:00:04]}  Ke6 {[%clk 0:00:02]} 66. Rg5 {[%clk 0:00:04]}  Kf6 {[%clk 0:00:03]} 67. Rg1 {[%clk 0:00:04]}  Kf5 {[%clk 0:00:04]} 68. Ke3 {[%clk 0:00:04]}  Nf6 {[%clk 0:00:04]} 69. Kd3 {[%clk 0:00:04]}  h4 {[%clk 0:00:05]} 70. Rh1 {[%clk 0:00:03]}  g5 {[%clk 0:00:05]} 71. Kc4 {[%clk 0:00:04]}  Kf4 {[%clk 0:00:06]} 72. d5 {[%clk 0:00:04]}  Nd7 {[%clk 0:00:05]} 73. d6 {[%clk 0:00:03]}  Kxf3 {[%clk 0:00:05]} 74. Kd5 {[%clk 0:00:03]}  Kg2 {[%clk 0:00:05]} 75. Re1 {[%clk 0:00:02]}  h3 {[%clk 0:00:05]} 76. Kc6 {[%clk 0:00:02]}  Nf6 {[%clk 0:00:05]} 77. Re6 {[%clk 0:00:02]}  h2 {[%clk 0:00:05]} 78. Rxf6 {[%clk 0:00:03]}  h1=Q {[%clk 0:00:05]} 79. d7 {[%clk 0:00:03]}  Kg3+ {[%clk 0:00:05]} 80. Kc7 {[%clk 0:00:03]}  Qh7 {[%clk 0:00:04]} 81. Rd6 {[%clk 0:00:03]}  g4 {[%clk 0:00:00]} 82. Kb8 {[%clk 0:00:02]} 1-0


[Site "https://www.chess.com"]

[Event "Titled Tuesday Blitz May 30 Early 2023"]
[White "Djordjevic, Vuk"]
[Black "Zemlyanskii, Ivan"]
[WhiteFideId "902098"]
[BlackFideId "24249971"]
[WhiteElo "2452"]
[BlackElo "2421"]
[Result "1-0"]
[Round "11"]
[TimeControl "180+2"]
[Date "2023.05.30"]
[WhiteClock "0:02:20"]
[BlackClock "0:00:00"]

1. d4 {[%clk 0:03:00]}  d5 {[%clk 0:02:55]} 2. Nf3 {[%clk 0:02:59]}  Nf6 {[%clk 0:02:56]} 3. c4 {[%clk 0:03:00]}  c6 {[%clk 0:02:56]} 4. Nc3 {[%clk 0:03:00]}  dxc4 {[%clk 0:02:55]} 5. a4 {[%clk 0:02:59]}  Bf5 {[%clk 0:02:56]} 6. e3 {[%clk 0:03:00]}  e6 {[%clk 0:02:56]} 7. Bxc4 {[%clk 0:03:00]}  Bb4 {[%clk 0:02:57]} 8. O-O {[%clk 0:03:00]}  Nbd7 {[%clk 0:02:57]} 9. Qe2 {[%clk 0:02:59]}  O-O {[%clk 0:02:58]} 10. e4 {[%clk 0:02:56]}  Bg6 {[%clk 0:02:59]} 11. e5 {[%clk 0:02:51]}  Nd5 {[%clk 0:02:43]} 12. Ne4 {[%clk 0:02:50]}  Be7 {[%clk 0:00:00]} 13. Rd1 {[%clk 0:02:20]} 1-0


[Site "https://www.chess.com"]

[Event "Titled Tuesday Blitz May 30 Early 2023"]
[White "Rustemov, Alexander"]
[Black "Csonka, Balazs"]
[WhiteFideId "4119002"]
[BlackFideId "742910"]
[WhiteElo "2822"]
[BlackElo "2404"]
[Result "1-0"]
[Round "11"]
[TimeControl "180+2"]
[Date "2023.05.30"]
[WhiteClock "0:00:21"]
[BlackClock "0:00:02"]

1. d4 {[%clk 0:03:00]}  d5 {[%clk 0:02:59]} 2. Nf3 {[%clk 0:03:01]}  Nf6 {[%clk 0:02:59]} 3. c4 {[%clk 0:03:00]}  c6 {[%clk 0:02:58]} 4. e3 {[%clk 0:02:58]}  e6 {[%clk 0:02:56]} 5. Nc3 {[%clk 0:02:57]}  Be7 {[%clk 0:02:45]} 6. Bd3 {[%clk 0:02:54]}  O-O {[%clk 0:02:46]} 7. O-O {[%clk 0:02:54]}  dxc4 {[%clk 0:02:30]} 8. Bxc4 {[%clk 0:02:54]}  c5 {[%clk 0:02:31]} 9. Qe2 {[%clk 0:02:50]}  a6 {[%clk 0:02:21]} 10. Rd1 {[%clk 0:02:48]}  b5 {[%clk 0:02:15]} 11. dxc5 {[%clk 0:02:45]}  Qc7 {[%clk 0:02:15]} 12. Bd3 {[%clk 0:02:44]}  Bxc5 {[%clk 0:02:12]} 13. b3 {[%clk 0:02:35]}  Bb7 {[%clk 0:02:10]} 14. Bb2 {[%clk 0:02:35]}  Qe7 {[%clk 0:02:00]} 15. Ng5 {[%clk 0:02:28]}  Ba3 {[%clk 0:01:36]} 16. Bxa3 {[%clk 0:02:20]}  Qxa3 {[%clk 0:01:37]} 17. Nce4 {[%clk 0:02:17]}  Nbd7 {[%clk 0:01:31]} 18. Rac1 {[%clk 0:02:04]}  h6 {[%clk 0:00:49]} 19. Rc7 {[%clk 0:02:02]}  Bd5 {[%clk 0:00:48]} 20. Nxf6+ {[%clk 0:01:48]}  Nxf6 {[%clk 0:00:49]} 21. Nh3 {[%clk 0:01:48]}  Rac8 {[%clk 0:00:42]} 22. Rxc8 {[%clk 0:01:45]}  Rxc8 {[%clk 0:00:43]} 23. Nf4 {[%clk 0:01:44]}  Rc1 {[%clk 0:00:39]} 24. Rxc1 {[%clk 0:01:41]}  Qxc1+ {[%clk 0:00:39]} 25. Qf1 {[%clk 0:01:41]}  Qb2 {[%clk 0:00:38]} 26. Qb1 {[%clk 0:01:41]}  Qd2 {[%clk 0:00:35]} 27. Qc2 {[%clk 0:01:34]}  Qe1+ {[%clk 0:00:28]} 28. Bf1 {[%clk 0:01:33]}  g5 {[%clk 0:00:26]} 29. Nd3 {[%clk 0:01:33]}  Qa1 {[%clk 0:00:24]} 30. f3 {[%clk 0:01:31]}  Kg7 {[%clk 0:00:16]} 31. Kf2 {[%clk 0:01:28]}  e5 {[%clk 0:00:13]} 32. Qb2 {[%clk 0:01:25]}  Qxb2+ {[%clk 0:00:13]} 33. Nxb2 {[%clk 0:01:25]}  e4 {[%clk 0:00:12]} 34. Nd1 {[%clk 0:01:20]}  Bc6 {[%clk 0:00:11]} 35. b4 {[%clk 0:01:18]}  Kf8 {[%clk 0:00:11]} 36. Nc3 {[%clk 0:01:18]}  Ke7 {[%clk 0:00:09]} 37. a3 {[%clk 0:01:07]}  Kd6 {[%clk 0:00:09]} 38. Be2 {[%clk 0:01:05]}  exf3 {[%clk 0:00:09]} 39. gxf3 {[%clk 0:01:03]}  Nd7 {[%clk 0:00:09]} 40. f4 {[%clk 0:01:00]}  f6 {[%clk 0:00:07]} 41. Kg3 {[%clk 0:00:59]}  Nb6 {[%clk 0:00:07]} 42. Kg4 {[%clk 0:00:51]}  Nd5 {[%clk 0:00:06]} 43. Nxd5 {[%clk 0:00:42]}  Bxd5 {[%clk 0:00:07]} 44. Kf5 {[%clk 0:00:41]}  Ke7 {[%clk 0:00:05]} 45. Kg6 {[%clk 0:00:39]}  gxf4 {[%clk 0:00:04]} 46. exf4 {[%clk 0:00:40]}  Be4+ {[%clk 0:00:05]} 47. Kxh6 {[%clk 0:00:39]}  Ke6 {[%clk 0:00:06]} 48. Bg4+ {[%clk 0:00:36]}  f5 {[%clk 0:00:05]} 49. Bd1 {[%clk 0:00:30]}  Kf6 {[%clk 0:00:06]} 50. Bb3 {[%clk 0:00:26]}  Bc6 {[%clk 0:00:04]} 51. h4 {[%clk 0:00:25]}  Bd7 {[%clk 0:00:04]} 52. Kh7 {[%clk 0:00:25]}  Be8 {[%clk 0:00:05]} 53. Bd1 {[%clk 0:00:22]}  Bf7 {[%clk 0:00:05]} 54. Bf3 {[%clk 0:00:21]}  Bc4 {[%clk 0:00:02]} 55. Bb7 {[%clk 0:00:21]} 1-0


[Site "https://www.chess.com"]

[Event "Titled Tuesday Blitz May 30 Early 2023"]
[White "Melikyan, Gnel"]
[Black "Baskakov, Egor"]
[WhiteFideId "54109990"]
[BlackFideId "24197866"]
[WhiteElo "2138"]
[BlackElo "2225"]
[Result "1/2-1/2"]
[Round "11"]
[TimeControl "180+2"]
[Date "2023.05.30"]
[WhiteClock "0:00:36"]
[BlackClock "0:00:53"]

1. e4 {[%clk 0:02:59]}  c5 {[%clk 0:03:00]} 2. Nf3 {[%clk 0:03:00]}  Nf6 {[%clk 0:03:00]} 3. e5 {[%clk 0:02:58]}  Nd5 {[%clk 0:03:01]} 4. Nc3 {[%clk 0:02:59]}  e6 {[%clk 0:03:01]} 5. Nxd5 {[%clk 0:02:56]}  exd5 {[%clk 0:03:02]} 6. d4 {[%clk 0:02:56]}  Nc6 {[%clk 0:03:03]} 7. dxc5 {[%clk 0:02:53]}  Bxc5 {[%clk 0:03:04]} 8. Bd3 {[%clk 0:02:53]}  d6 {[%clk 0:03:04]} 9. exd6 {[%clk 0:02:52]}  O-O {[%clk 0:03:03]} 10. O-O {[%clk 0:02:52]}  Qxd6 {[%clk 0:03:03]} 11. Re1 {[%clk 0:02:48]}  h6 {[%clk 0:03:02]} 12. h3 {[%clk 0:02:48]}  Bd7 {[%clk 0:03:02]} 13. Be3 {[%clk 0:02:38]}  Bxe3 {[%clk 0:02:57]} 14. Rxe3 {[%clk 0:02:39]}  Rfe8 {[%clk 0:02:57]} 15. Rxe8+ {[%clk 0:02:39]}  Rxe8 {[%clk 0:02:58]} 16. Qd2 {[%clk 0:02:40]}  Qf6 {[%clk 0:02:57]} 17. c3 {[%clk 0:02:39]}  Bxh3 {[%clk 0:02:57]} 18. Bb5 {[%clk 0:02:37]}  Be6 {[%clk 0:02:52]} 19. Re1 {[%clk 0:02:36]}  Rd8 {[%clk 0:02:49]} 20. Bxc6 {[%clk 0:02:17]}  bxc6 {[%clk 0:02:50]} 21. Qe3 {[%clk 0:02:18]}  Rb8 {[%clk 0:02:45]} 22. b4 {[%clk 0:02:16]}  a5 {[%clk 0:02:41]} 23. Qa7 {[%clk 0:02:15]}  Qd8 {[%clk 0:02:40]} 24. Nd4 {[%clk 0:02:07]}  Qb6 {[%clk 0:02:22]} 25. Qxa5 {[%clk 0:01:52]}  Qxa5 {[%clk 0:02:19]} 26. bxa5 {[%clk 0:01:53]}  c5 {[%clk 0:01:54]} 27. Nxe6 {[%clk 0:01:47]}  fxe6 {[%clk 0:01:55]} 28. Rxe6 {[%clk 0:01:48]}  Rb5 {[%clk 0:01:51]} 29. Ra6 {[%clk 0:01:32]}  Kf7 {[%clk 0:01:33]} 30. a4 {[%clk 0:01:22]}  Rb3 {[%clk 0:01:32]} 31. Rd6 {[%clk 0:01:19]}  Rxc3 {[%clk 0:01:27]} 32. Rxd5 {[%clk 0:01:18]}  Ke6 {[%clk 0:01:27]} 33. Rh5 {[%clk 0:01:10]}  Kd6 {[%clk 0:01:16]} 34. Rh4 {[%clk 0:01:06]}  Rc1+ {[%clk 0:01:06]} 35. Kh2 {[%clk 0:01:05]}  Rb1 {[%clk 0:01:06]} 36. Rg4 {[%clk 0:01:02]}  g5 {[%clk 0:01:05]} 37. Re4 {[%clk 0:00:57]}  Rb8 {[%clk 0:01:04]} 38. f4 {[%clk 0:00:55]}  gxf4 {[%clk 0:01:02]} 39. Rxf4 {[%clk 0:00:55]}  Ra8 {[%clk 0:01:01]} 40. Rf6+ {[%clk 0:00:49]}  Ke5 {[%clk 0:01:01]} 41. Rxh6 {[%clk 0:00:47]}  Rxa5 {[%clk 0:01:01]} 42. Rh4 {[%clk 0:00:44]}  Ra8 {[%clk 0:00:57]} 43. Kh3 {[%clk 0:00:44]}  Rc8 {[%clk 0:00:56]} 44. Rc4 {[%clk 0:00:42]}  Kd5 {[%clk 0:00:56]} 45. Rc1 {[%clk 0:00:43]}  c4 {[%clk 0:00:54]} 46. g4 {[%clk 0:00:43]}  Kc5 {[%clk 0:00:51]} 47. g5 {[%clk 0:00:36]}  Kb4 {[%clk 0:00:51]} 48. Kg4 {[%clk 0:00:37]}  Kxa4 {[%clk 0:00:50]} 49. g6 {[%clk 0:00:36]}  Kb3 {[%clk 0:00:51]} 50. Kg5 {[%clk 0:00:36]}  c3 {[%clk 0:00:51]} 51. g7 {[%clk 0:00:36]}  c2 {[%clk 0:00:51]} 52. Kg6 {[%clk 0:00:36]}  Kb2 {[%clk 0:00:52]} 53. Rxc2+ {[%clk 0:00:36]}  Kxc2 {[%clk 0:00:52]} 54. Kh7 {[%clk 0:00:37]}  Rc7 {[%clk 0:00:53]} 55. Kh8 {[%clk 0:00:37]}  Rxg7 {[%clk 0:00:53]} 56. Kxg7 {[%clk 0:00:36]} 1/2-1/2


[Site "https://www.chess.com"]

[Event "Titled Tuesday Blitz May 30 Early 2023"]
[White "Galchenko, Matvey"]
[Black "Agibileg, Uurtsaikh"]
[WhiteFideId "24175480"]
[BlackFideId "4901606"]
[WhiteElo "2423"]
[BlackElo "2353"]
[Result "1-0"]
[Round "11"]
[TimeControl "180+2"]
[Date "2023.05.30"]
[WhiteClock "0:00:29"]
[BlackClock "0:00:52"]

1. f4 {[%clk 0:03:00]}  Nf6 {[%clk 0:02:57]} 2. Nf3 {[%clk 0:03:00]}  g6 {[%clk 0:02:58]} 3. g3 {[%clk 0:03:01]}  Bg7 {[%clk 0:02:58]} 4. Bg2 {[%clk 0:03:02]}  O-O {[%clk 0:02:59]} 5. O-O {[%clk 0:03:03]}  c5 {[%clk 0:02:58]} 6. d3 {[%clk 0:03:03]}  Nc6 {[%clk 0:02:57]} 7. Nc3 {[%clk 0:03:04]}  Rb8 {[%clk 0:02:56]} 8. e4 {[%clk 0:03:05]}  d6 {[%clk 0:02:56]} 9. a4 {[%clk 0:03:03]}  a6 {[%clk 0:02:56]} 10. h3 {[%clk 0:03:02]}  b5 {[%clk 0:02:55]} 11. axb5 {[%clk 0:03:03]}  axb5 {[%clk 0:02:56]} 12. Qe2 {[%clk 0:03:04]}  b4 {[%clk 0:02:56]} 13. Nd1 {[%clk 0:03:04]}  Nd7 {[%clk 0:02:46]} 14. Ne3 {[%clk 0:03:03]}  Bb7 {[%clk 0:02:44]} 15. g4 {[%clk 0:03:01]}  e6 {[%clk 0:02:44]} 16. Qf2 {[%clk 0:02:53]}  Qe7 {[%clk 0:02:33]} 17. f5 {[%clk 0:02:36]}  Nce5 {[%clk 0:02:31]} 18. Nxe5 {[%clk 0:02:21]}  Bxe5 {[%clk 0:02:29]} 19. g5 {[%clk 0:02:10]}  exf5 {[%clk 0:02:25]} 20. exf5 {[%clk 0:02:10]}  Qxg5 {[%clk 0:01:47]} 21. Ng4 {[%clk 0:02:04]}  Qh5 {[%clk 0:01:47]} 22. Ra7 {[%clk 0:01:39]}  Bxg2 {[%clk 0:01:36]} 23. Qxg2 {[%clk 0:01:36]}  Nf6 {[%clk 0:01:29]} 24. Nxe5 {[%clk 0:01:18]}  dxe5 {[%clk 0:01:27]} 25. fxg6 {[%clk 0:01:05]}  Qxg6 {[%clk 0:01:24]} 26. Rxf6 {[%clk 0:01:02]}  Qxg2+ {[%clk 0:01:21]} 27. Kxg2 {[%clk 0:01:03]}  Kg7 {[%clk 0:01:20]} 28. Raa6 {[%clk 0:00:57]}  Rg8 {[%clk 0:01:13]} 29. Bh6+ {[%clk 0:00:56]}  Kh8+ {[%clk 0:01:13]} 30. Kf3 {[%clk 0:00:56]}  b3 {[%clk 0:01:12]} 31. c4 {[%clk 0:00:42]}  Rbd8 {[%clk 0:01:10]} 32. Rad6 {[%clk 0:00:31]}  Ra8 {[%clk 0:00:53]} 33. Rxf7 {[%clk 0:00:31]}  Ra1 {[%clk 0:00:53]} 34. Rdd7 {[%clk 0:00:28]}  Rf1+ {[%clk 0:00:53]} 35. Ke4 {[%clk 0:00:29]}  Rxf7 {[%clk 0:00:53]} 36. Rxf7 {[%clk 0:00:29]}  Rd8 {[%clk 0:00:52]} 37. Rf8+ {[%clk 0:00:29]} 1-0


[Site "https://www.chess.com"]

[Event "Titled Tuesday Blitz May 30 Early 2023"]
[White "Miranda, Rafael"]
[Black "Sethuraman, S.P."]
[WhiteFideId "130990"]
[BlackFideId "5021596"]
[WhiteElo "2204"]
[BlackElo "2543"]
[Result "0-1"]
[Round "11"]
[TimeControl "180+2"]
[Date "2023.05.30"]
[WhiteClock "0:01:49"]
[BlackClock "0:01:22"]

1. e4 {[%clk 0:03:00]}  c5 {[%clk 0:02:56]} 2. Nf3 {[%clk 0:03:01]}  d6 {[%clk 0:02:55]} 3. c3 {[%clk 0:03:01]}  Nf6 {[%clk 0:02:55]} 4. h3 {[%clk 0:03:01]}  g6 {[%clk 0:02:55]} 5. Bd3 {[%clk 0:03:01]}  Bg7 {[%clk 0:02:55]} 6. O-O {[%clk 0:03:02]}  O-O {[%clk 0:02:55]} 7. Re1 {[%clk 0:03:03]}  Nc6 {[%clk 0:02:55]} 8. Bf1 {[%clk 0:03:03]}  e5 {[%clk 0:02:55]} 9. d3 {[%clk 0:03:00]}  h6 {[%clk 0:02:53]} 10. Nbd2 {[%clk 0:02:59]}  Be6 {[%clk 0:02:50]} 11. a4 {[%clk 0:02:58]}  a6 {[%clk 0:02:49]} 12. Nc4 {[%clk 0:02:57]}  b6 {[%clk 0:02:46]} 13. Rb1 {[%clk 0:02:41]}  Rb8 {[%clk 0:02:44]} 14. Ne3 {[%clk 0:02:38]}  b5 {[%clk 0:02:44]} 15. axb5 {[%clk 0:02:38]}  axb5 {[%clk 0:02:45]} 16. d4 {[%clk 0:02:32]}  exd4 {[%clk 0:02:39]} 17. cxd4 {[%clk 0:02:32]}  Nb4 {[%clk 0:02:17]} 18. d5 {[%clk 0:02:24]}  Bd7 {[%clk 0:02:16]} 19. Nc2 {[%clk 0:02:25]}  Nxc2 {[%clk 0:02:13]} 20. Qxc2 {[%clk 0:02:25]}  Re8 {[%clk 0:02:14]} 21. Bf4 {[%clk 0:02:24]}  Qb6 {[%clk 0:02:07]} 22. b3 {[%clk 0:02:16]}  Ra8 {[%clk 0:01:32]} 23. Qd2 {[%clk 0:02:14]}  Nxe4 {[%clk 0:01:31]} 24. Rxe4 {[%clk 0:01:56]}  Rxe4 {[%clk 0:01:30]} 25. Bxh6 {[%clk 0:01:57]}  Qa5 {[%clk 0:01:24]} 26. b4 {[%clk 0:01:49]}  Rxb4 {[%clk 0:01:22]} 0-1


[Site "https://www.chess.com"]

[Event "Titled Tuesday Blitz May 30 Early 2023"]
[White "Souleidis, Georgios"]
[Black "Kukhmazov, Arsen"]
[WhiteFideId "4206827"]
[BlackFideId "24108260"]
[WhiteElo "2401"]
[BlackElo "2396"]
[Result "0-1"]
[Round "11"]
[TimeControl "180+2"]
[Date "2023.05.30"]
[WhiteClock "0:00:00"]
[BlackClock "0:00:08"]

1. e4 {[%clk 0:03:00]}  e5 {[%clk 0:02:58]} 2. Nc3 {[%clk 0:03:01]}  Nf6 {[%clk 0:02:57]} 3. d4 {[%clk 0:03:00]}  exd4 {[%clk 0:02:55]} 4. Qxd4 {[%clk 0:03:01]}  Nc6 {[%clk 0:02:56]} 5. Qd3 {[%clk 0:03:01]}  Bb4 {[%clk 0:02:55]} 6. Bd2 {[%clk 0:03:01]}  O-O {[%clk 0:02:51]} 7. O-O-O {[%clk 0:03:00]}  Re8 {[%clk 0:02:49]} 8. Nge2 {[%clk 0:03:00]}  d6 {[%clk 0:02:38]} 9. Bg5 {[%clk 0:02:59]}  Bxc3 {[%clk 0:02:35]} 10. Nxc3 {[%clk 0:02:59]}  h6 {[%clk 0:02:34]} 11. Bxf6 {[%clk 0:02:58]}  Qxf6 {[%clk 0:02:34]} 12. Nd5 {[%clk 0:02:54]}  Qd8 {[%clk 0:02:34]} 13. f4 {[%clk 0:02:48]}  Be6 {[%clk 0:02:27]} 14. Nc3 {[%clk 0:02:48]}  Nb4 {[%clk 0:02:18]} 15. Qd4 {[%clk 0:02:32]}  a5 {[%clk 0:02:06]} 16. a3 {[%clk 0:02:32]}  Nc6 {[%clk 0:02:06]} 17. Qf2 {[%clk 0:02:21]}  f5 {[%clk 0:02:01]} 18. exf5 {[%clk 0:02:17]}  Bxf5 {[%clk 0:02:00]} 19. Bc4+ {[%clk 0:02:13]}  Kh8 {[%clk 0:01:42]} 20. h3 {[%clk 0:02:11]}  Be6 {[%clk 0:01:11]} 21. Bxe6 {[%clk 0:02:10]}  Rxe6 {[%clk 0:01:11]} 22. Rhe1 {[%clk 0:02:11]}  Qd7 {[%clk 0:01:06]} 23. f5 {[%clk 0:01:57]}  Rxe1 {[%clk 0:01:04]} 24. Rxe1 {[%clk 0:01:57]}  Rf8 {[%clk 0:01:04]} 25. g4 {[%clk 0:01:57]}  Ne5 {[%clk 0:01:04]} 26. Nd5 {[%clk 0:01:23]}  Qc6 {[%clk 0:00:50]} 27. Nf4 {[%clk 0:01:13]}  g5 {[%clk 0:00:50]} 28. Rxe5 {[%clk 0:00:30]}  dxe5 {[%clk 0:00:50]} 29. Nd3 {[%clk 0:00:28]}  Qh1+ {[%clk 0:00:50]} 30. Kd2 {[%clk 0:00:28]}  Qd5 {[%clk 0:00:50]} 31. Kc3 {[%clk 0:00:02]}  Rd8 {[%clk 0:00:42]} 32. Qe3 {[%clk 0:00:02]}  Qd4+ {[%clk 0:00:41]} 33. Qxd4 {[%clk 0:00:03]}  exd4+ {[%clk 0:00:42]} 34. Kc4 {[%clk 0:00:03]}  Kg7 {[%clk 0:00:39]} 35. b4 {[%clk 0:00:03]}  axb4 {[%clk 0:00:38]} 36. axb4 {[%clk 0:00:04]}  b6 {[%clk 0:00:33]} 37. b5 {[%clk 0:00:04]}  Kf6 {[%clk 0:00:32]} 38. Nb4 {[%clk 0:00:05]}  Rd7 {[%clk 0:00:24]} 39. Nc6 {[%clk 0:00:04]}  h5 {[%clk 0:00:20]} 40. Nxd4 {[%clk 0:00:04]}  hxg4 {[%clk 0:00:20]} 41. hxg4 {[%clk 0:00:05]}  Ke5 {[%clk 0:00:18]} 42. Ne6 {[%clk 0:00:06]}  Kf6 {[%clk 0:00:12]} 43. c3 {[%clk 0:00:06]}  Rh7 {[%clk 0:00:11]} 44. Kd5 {[%clk 0:00:06]}  Rh4 {[%clk 0:00:10]} 45. Nxc7 {[%clk 0:00:06]}  Rxg4 {[%clk 0:00:07]} 46. Na8 {[%clk 0:00:07]}  Kxf5 {[%clk 0:00:05]} 47. Nxb6 {[%clk 0:00:07]}  Rg1 {[%clk 0:00:06]} 48. Nc4 {[%clk 0:00:06]}  Kf4 {[%clk 0:00:06]} 49. Nd6 {[%clk 0:00:06]}  g4 {[%clk 0:00:06]} 50. b6 {[%clk 0:00:03]}  Rb1 {[%clk 0:00:07]} 51. Kc5 {[%clk 0:00:03]}  Rxb6 {[%clk 0:00:06]} 52. Kxb6 {[%clk 0:00:04]}  g3 {[%clk 0:00:07]} 53. Nc4 {[%clk 0:00:00]}  g2 {[%clk 0:00:08]} 0-1


[Site "https://www.chess.com"]